Cogmind - Beta 10.2 @@@ ROGUE MODE // 2021.07.17 @ 02:52:33 Player: calledf Result: Destroyed by S-10 Pest with Light Assault Rifle Performance ------------- Evolutions (0) 0 Regions Visited (2) 400 Robots Destroyed (15) 75 Value Destroyed (473) 473 Prototype IDs (1) 20 Alien Tech Used (0) 0 Bonus (0) 0 TOTAL SCORE: 968 Bonus ------- None Cogmind --------- Core Integrity 0/250 Matter 300/300 Energy 100/100 System Corruption 0% Temperature Cool (0) Movement Walking (120) Location -10/Mines Parts ------- > --- POWER (1) -------- (None) > --- PROPULSION (2) --- Aluminum Leg > --- UTILITY (2) ------ Small Storage Unit Experimental Sensor Array > --- WEAPON (2) ------- (None) > --- INVENTORY (6) ---- Light Treads Light Treads Aluminum Leg Improved Heat Sink Hacking Suite Peak State ------------ > --- POWER ------------ Light Nuclear Core > --- PROPULSION ------- Aluminum Leg Aluminum Leg > --- UTILITY ---------- Improved Heat Sink Small Storage Unit > --- WEAPON ----------- Light Assault Rifle Light Assault Rifle > --- INVENTORY -------- Ion Engine Light Treads Light Treads Wheel Wheel EM Pulse Gun [Rating: 11] Favorites ----------- Power Ion Engine Engine Ion Engine Power Core Light Nuclear Core Propulsion Aluminum Leg Leg Aluminum Leg Utility Small Storage Unit Device Experimental Sensor Array Storage Small Storage Unit Weapon Grenade Launcher Energy Gun EM Pulse Gun Ballistic Gun Light Assault Rifle Launcher Grenade Launcher Build | -11 -10 -10 ------- Run | Scr Mat Min Slots Evolved . | . . . Power . | . . . Propulsion . | . . . Utility . | . . . Weapon . | . . . Parts Attached 19 | 6 7 6 Power 5 | 1 2 2 Engine 4 | 1 1 2 Core 1 | . 1 . Reactor . | . . . Propulsion 5 | 2 1 2 Treads . | . . . Leg 5 | 2 1 2 Wheel . | . . . Hover . | . . . Flight . | . . . Utility 3 | 1 1 1 Device 2 | . 1 1 Storage 1 | 1 . . Processor . | . . . Hackware . | . . . Protection . | . . . Artifact . | . . . Weapon 6 | 2 3 1 Energy Gun 2 | . 2 . Energy Cannon . | . . . Ballistic Gun 3 | 2 1 . Ballistic Cannon . | . . . Launcher 1 | . . 1 Special Weapon . | . . . Impact Weapon . | . . . Slashing Weapon . | . . . Piercing Weapon . | . . . Special Melee Weapon . | . . . Unidentified Prototypes 1 | . . 1 Parts Lost 13 | . 4 9 Power 4 | . 1 3 Propulsion 4 | . 1 3 Utility . | . . . Weapon 5 | . 2 3 Highest Loss Streak 4 | . 2 4 Average Slot Usage (%) 76 | . 96 70 Engine 12 | . 8 13 Core 1 | . 5 . Leg 17 | . 27 15 Device 13 | . 12 14 Storage 14 | . 14 14 Energy Gun 1 | . 6 . Ballistic Gun 5 | . 21 . Launcher 9 | . . 12 Naked Turns . | . . . Heaviest Build 14 | 9 14 13 Greatest Support 20 | 20 20 20 Greatest Overweight (x) 4 | 2 1 4 Average Overweight (x) . | . . . Largest Inventory Capacity 6 | 6 6 6 Average Capacity 5 | 5 6 6 Most Carried 6 | 6 6 6 Average Carried 4 | 2 5 4 Final Capacity 6 | 6 6 6 Final Carried 6 | 6 5 5 Class Distribution -------------------- 100% | Mutant Dominant Class ---------------- Mutant | -10/Materials Mutant | -10/Mines Resources | -11 -10 -10 ----------- Run | Scr Mat Min Matter Collected 498 | 223 172 103 Remotely . | . . . Salvage Created 646 | 97 387 162 Parts 28 | 2 18 8 Haulers Intercepted . | . . . Recyclers Shooed . | . . . Parts Field Recycled . | . . . Retrieved Matter . | . . . Parts Self-Destructed . | . . . Prevented . | . . . Kills | -11 -10 -10 ------- Run | Scr Mat Min Combat Hostiles Destroyed 12 | . 8 4 Melee 1 | . . 1 Guns 9 | . 8 1 AOE 2 | . . 2 Classes Destroyed 4 | 1 2 1 Tunneler 1 | . . 1 Recycler 1 | 1 . . Operator 1 | . 1 . Grunt 12 | . 8 4 Best Kill Streak 3 | 1 3 2 Combat Bots Only 3 | . 3 1 Max Kills in Single Turn 2 | 1 1 2 Gunslinging . | . . . Exploded 1 | . . 1 Melee 1 | . . 1 Uniques/NPCs Destroyed . | . . . Combat | -11 -10 -10 -------- Run | Scr Mat Min Damage Taken 1237 | . 533 704 Core 254 | . 87 167 Absorbed by Shields . | . . . Core Remaining (%) 100 | 100 . . Volleys Fired 61 | 2 39 20 Largest 2 | 2 2 2 Hottest 60 | 40 60 60 Shots Fired 103 | 4 76 23 Gun 98 | 4 76 18 Cannon . | . . . Launcher 5 | . . 5 Special . | . . . Kinetic 86 | 4 67 15 Thermal 4 | . 4 . Explosive 5 | . . 5 Electromagnetic 8 | . 5 3 Robot Hit Streak 15 | 3 15 13 Robot Miss Streak 4 | . 4 3 Penetration Max . | . . . Secondary Targets . | . . . Shots Hit Robots 80 | 3 61 16 Core Hits 39 | 2 22 15 Critical Hits 2 | . 1 1 Critical Kills . | . . . Critical Parts Destroyed 2 | . 1 1 Melee Attacks . | . . . Impact . | . . . Slashing . | . . . Piercing . | . . . Sneak Attacks . | . . . Combat Hostiles . | . . . Follow-up Attacks . | . . . Damage Inflicted 1097 | 27 667 403 Guns 746 | 27 553 166 Cannons . | . . . Explosions 305 | . 105 200 Melee . | . . . Ramming 46 | . 9 37 Kinetic 609 | 27 441 141 Thermal 148 | . 148 . Explosive 200 | . . 200 Electromagnetic 94 | . 69 25 Impact . | . . . Slashing . | . . . Piercing . | . . . Highest Corruption . | . . . Average Corruption . | . . . Corruption Purged . | . . . Overload Shots . | . . . Overflow Damage 49 | . . 49 Projectiles . | . . . Explosions 49 | . . 49 Melee . | . . . Knockbacks . | . . . Impact . | . . . Kinetic . | . . . Secondary . | . . . Self-Inflicted Damage 226 | . 59 167 Shots 6 | . 1 5 Rammed 16 | . 1 15 Targets Rammed 21 | . 2 19 Kicked 5 | . 1 4 Crushed . | . . . Highest Temperature 9 | . 9 7 Average Temperature 5 | . 7 2 Received Heat Transfer 498 | . 264 234 Siege Activations . | . . . Robots Corrupted . | . . . Combat Hostiles . | . . . Parts Fried . | . . . Impact Corruptions . | . . . Robots Melted . | . . . Combat Hostiles . | . . . Parts Melted . | . . . Heat Transferred 200 | . 200 . Parts Sabotaged . | . . . Parts Stolen . | . . . Parts Stripped . | . . . Power Chain Reactions 1 | . 1 . Missiles Intercepted . | . . . Alert | -11 -10 -10 ------- Run | Scr Mat Min Peak Influence 221 | 5 221 95 Initial 85 | . 3 85 Average 52 | 1 127 33 Maximum Alert Level 1 | . 1 . Low Security (%) 95 | 100 81 100 Level 1 4 | . 18 . Level 2 . | . . . Level 3 . | . . . Level 4 . | . . . Level 5 . | . . . High Security . | . . . Max Security . | . . . Squads Dispatched 3 | . 3 . Investigation 2 | . 2 . Extermination . | . . . Reinforcement 1 | . 1 . Assault . | . . . Garrison . | . . . Intercept . | . . . Construction Impeded . | . . . Haulers Reinforced . | . . . Stealth | -11 -10 -10 --------- Run | Scr Mat Min Distress Signals 2 | . 2 . Communications Jammed . | . . . Distress Signals . | . . . Times Spotted 20 | . 13 7 Peak Tracking Total 6 | . 6 3 Tactical Retreats 3 | . 3 . Traps | -11 -10 -10 ------- Run | Scr Mat Min Traps Triggered 1 | . 1 . Indirectly . | . . . Trap Hack Attempts . | . . . Triggered . | . . . Disarmed . | . . . Reprogrammed . | . . . Reused . | . . . Traps Extracted . | . . . Installed . | . . . Triggered 1 | . 1 . Machines | -11 -10 -10 ---------- Run | Scr Mat Min Machines Disabled 1 | . . 1 Max in Single Turn 1 | . . 1 Machines Sabotaged . | . . . Garrisons Compromised . | . . . Overloaded Fab Kills . | . . . Fab Network Shutdowns . | . . . Hacking | -11 -10 -10 --------- Run | Scr Mat Min Machines Accessed 3 | . 3 . Terminals 3 | . 3 . Fabricators . | . . . Repair Stations . | . . . Recycling Units . | . . . Scanalyzers . | . . . Garrison Access . | . . . Total Hacks 18 | . 18 . Successful 10 | . 10 . Failed 8 | . 8 . Catastrophic 1 | . 1 . Database Lockouts . | . . . Manual . | . . . Terminals 18 | . 18 . Fabricators . | . . . Repair Stations . | . . . Recycling Units . | . . . Scanalyzers . | . . . Garrison Access . | . . . Terminal Hacks 10 | . 10 . Record 7 | . 7 . Branch Access Points 1 | . 1 . Alert Level 1 | . 1 . Zone Layout 1 | . 1 . Fabricator Hacks . | . . . Repair Station Hacks . | . . . Recycling Unit Hacks . | . . . Scanalyzer . | . . . Garrison Access Hacks . | . . . Unauthorized Hacks . | . . . Terminals . | . . . Fabricators . | . . . Repair Stations . | . . . Recycling Units . | . . . Scanalyzers . | . . . Garrison Access . | . . . Data Cores Recovered . | . . . Used . | . . . Hacking Detections 3 | . 3 . Full Trace Events . | . . . Feedback Events . | . . . Feedback Blocked . | . . . Robot Schematics Acquired . | . . . Robots Built . | . . . Matter . | . . . Time . | . . . Total Robot Build Rating . | . . . Part Schematics Acquired . | . . . Parts Built . | . . . Matter . | . . . Time . | . . . Total Part Build Rating . | . . . Parts Repaired . | . . . Time . | . . . Parts Recycled . | . . . Recycled Matter . | . . . Retrieved Matter . | . . . Retrieved Components . | . . . Parts Scanalyzed . | . . . Part Schematics Acquired . | . . . Parts Damaged . | . . . Bothacking | -11 -10 -10 ------------ Run | Scr Mat Min Used RIF Installer . | . . . Robots Hacked . | . . . Non-combat . | . . . Combat . | . . . Robot Hacks Applied . | . . . Relay Couplers Released . | . . . Robots Rewired . | . . . Allies Hacked . | . . . Hacks Repelled . | . . . Allies | -11 -10 -10 -------- Run | Scr Mat Min Total Allies . | . . . Largest Group . | . . . Highest-Rated Group . | . . . Highest-Rated Ally . | . . . Total Orders . | . . . Ally Attacks . | . . . Total Damage . | . . . Kills . | . . . Allies Corrupted . | . . . Allies Melted . | . . . Intel | -11 -10 -10 ------- Run | Scr Mat Min Robot Analysis Total . | . . . Derelict Logs Recovered . | . . . Drone Launches . | . . . Drone Recoveries . | . . . Exploration | -11 -10 -10 ------------- Run | Scr Mat Min Turns Passed 1615 | 81 361 1173 Spaces Moved 495 | 52 180 263 Core 18 | 8 . 10 Treads . | . . . Legs 477 | 44 180 253 Wheels . | . . . Hover . | . . . Flight . | . . . Fastest Speed 50 | 50 120 120 Average Speed 129 | 117 121 137 Slowest Speed 250 | 150 150 250 Overloaded Moves . | . . . Propulsion Burnouts . | . . . Robots Hopped . | . . . Cave-ins Triggered . | . . . Exploration Rate (%) 31 | 4 36 55 Regions Visited 2 Branch Regions 1 Pre-discovered Areas . | . . . Known Exits Taken 1 | . 1 . Unknown Exits Taken 1 | 1 . . Scrap Searched 1 | . . 1 Spaces Dug . | . . . Terrain Destroyed 56 | . 2 54 Melee . | . . . Projectile . | . . . AOE 56 | . 2 54 Terrain Rammed . | . . . Walls Destroyed . | . . . Machines Disabled . | . . . Actions | -11 -10 -10 --------- Run | Scr Mat Min Total 1371 | 65 260 1046 Wait 756 | . 23 733 Move 493 | 51 179 263 Hop . | . . . Pick Up 16 | 6 5 5 Fast Attach 9 | 6 3 . Attach 8 | . 3 5 Detach . | . . . Swap 2 | . 1 1 Drop 5 | . 5 . Fire 61 | 2 39 20 Melee . | . . . Ram . | . . . Kick 21 | . 2 19 Crush . | . . . Escape Stasis . | . . . Rewire . | . . . Trap . | . . . Miscellaneous . | . . . Route ------- -11/Scrapyard -10/Materials (discovered 2 exits: [*Mat] / *Min) -10/Mines History --------- Turn | Location | Event 10 | -11/Scrapyard | Discovered new exit (range 15) 82 | -11/Scrapyard | Entered Materials 305 | -10/Materials | Build established: Mutant 331 | -10/Materials | Discovered new exit (range 4) 419 | -10/Materials | Identified exit to Mines 443 | -10/Materials | Entered Mines 456 | -10/Mines | Core integrity fell below 50% 486 | -10/Mines | Core integrity fell below 20% 506 | -10/Mines | Found a hidden stash of uninstalled traps 512 | -10/Mines | Lost 4 parts (1p1n2w) 590 | -10/Mines | YI-UF0 nonchalantly dropped a Grenade Launcher on the ground 657 | -10/Mines | Found a damaged Exp. Sensor Array with a note attached 660 | -10/Mines | Found Prototype Device 661 | -10/Mines | Identified Exp. Sensor Array 768 | -10/Mines | Excavation squad dispatched 768 | -10/Mines | A large section of the Mines collapsed 1018 | -10/Mines | Excavation squad dispatched 1268 | -10/Mines | Excavation squad dispatched 1518 | -10/Mines | Excavation squad dispatched 1616 | -10/Mines | Destroyed by S-10 Pest with Light Assault Rifle Last Messages --------------- 01537_ Acquired 20 matter. 01540_ The unstable cave ceiling collapses. 01578_ Destroyed Sml. Laser. 01578_ G-34 Mercenary destroyed. 01578_ T-07 Excavator destroyed. 01578_ Ion Engine destroyed. 01578_ Destroyed Ion Engine. 01583_ Acquired 18 matter. 01584_ Acquired 7 matter. 01585_ The unstable cave ceiling collapses. 01586_ Acquired Lgt. Ion Engine. 01604_ Plasma Injector explodes. 01604_ Grenade Launcher destroyed. 01604_ Destroyed Grenade Launcher. 01607_ Slammed into S-10 Pest. 01609_ Lgt. Ion Engine destroyed. 01610_ Slammed into S-10 Pest. 01611_ Aluminum Leg destroyed. 01612_ Kicked S-10 Pest out of the way. 01614_ Slammed into S-10 Pest. Map ----- +----------------------------------------------------+ | | | | | | | ???????????????????????????? | | ???????????????????????????? | | ???????????????????????????? | | ???????????????????????????? | | ???????????????????????????? | | ????#??????????????????????? | | ???? ??????????????????????? | | ???? ??????????????????????? | | ???? "?????????????????????? | | ???? "?????????????????????? | | ???? ?????????????????????? | | ???# #?????????????????????? | | ???# #?????????????????????? | | ???# #?????????????????????? | | ???# #?????????????????????? | | ???# #?????????????????????? | | ???# #?????????????????????? | | ??## ####??????????????????? | | ??# ##?????????????????? | | ??# ;;;#?????????????????? | | ?##% s ##????????????????? | | ?# %% #????????????????? | | ?# @ s #????????????????? | | ?#;s ##????????????????? | | ?#; ####??????????????? | | ?## #????????????? | | ?# ### ###??????????? | | ?# ## #???????????? | | ?## ### #????????????# | | ??#####?# # #??????????# | | ????????## %= #??????????? | | ????????# ###??????????? | | ????????## ##??????????? | | ?????????## ###????????? | | ????# ### ## ##???????# | | ???# # = #????? | | ??# ##### #### | | ???????????# # # # | | ???????????##### #### # | | ???????????????# %* | | ???????????????# ! # | | ???????????????# # | | ???????????????# = ## # | | ??????????????## * ### | | ??????????????# = #? | | ??????????????# #??### | | ??????????????### * #????? | +----------------------------------------------------+ Best States ------------- Heat Dissipation 39 Energy Generation 14 Energy Capacity 250 Matter Stores 300 Matter Capacity 300 Sight Range 16 Robot Scan Range 30 Terrain Scan Density 10 Evasion (%) 40 Item Schematics ----------------- None Robot Schematics ------------------ None Fabricated ------------ Nothing Alien Tech Used ----------------- None Achievements -------------- None Challenges ------------ None Game ------ Seed HypercooledSkeletonAutogun Manual? 0 Play Time 00:10:27 Cumulative 16.1 hours Start 2021.07.17 @ 02:42:44 End 2021.07.17 @ 02:52:33 Sessions 1 Manual Loads 0 Difficulty Rogue Special Mode None Game No. 24 Rogue 22 Adventurer 2 Explorer 0 Win Type - Total 0 Types 0/0/0/0/0/0/0/0/0 Lore% 14 Gallery% 21 Achievement% 16 Wizard Run 0 Options --------- ASCII 0 Keyboard 0 Movement Mouse Keybinds 0 Fullscreen 1 Font 24/Terminus Map View 76x50 Tactical HUD 1 Map Filters NONE Filters NONE Steam 1 RUN: a7613dd9-dff5-46c7-8bff-a250dfabb1b0